fUST/lending_fUST_20240815
["ID","MTS","AMOUNT","RATE_DAILY","PERIOD"]
[334932384,1723655447351,-512.29,0.00013972,2]
[334932385,1723655447360,-700.9,0.00013972,2]
[334932386,1723655447370,-500.0,0.00013972,2]
[334932387,1723655447379,-649.48,0.00013972,2]
[334932388,1723655447389,-500.0,0.00013972,2]
[334932389,1723655447398,-500.0,0.00013972,2]
[334932390,1723655447408,-500.0,0.00013972,2]
[334932391,1723655447417,-500.0,0.00013972,2]
[334932392,1723655447427,-500.0,0.00013972,2]
[334932393,1723655447439,-500.0,0.00013972,2]
[334932394,1723655447457,-500.0,0.00013972,2]
[334932395,1723655447467,-500.0,0.00013972,2]
[334932396,1723655447477,-528.32,0.00013972,2]
[334932397,1723655447487,-500.0,0.00013972,2]
[334932398,1723655447496,-500.0,0.00013972,2]
[334932399,1723655447506,-151.0,0.00013972,2]
[334932400,1723655447515,-500.0,0.00013972,2]
[334932401,1723655447524,-500.0,0.00013972,2]
[334932402,1723655447534,-500.0,0.00013972,2]
[334932403,1723655447543,-597.69,0.00013972,2]
[334932404,1723655447552,-151.0,0.00013972,2]
[334932405,1723655447562,-500.0,0.00013972,2]
[334932406,1723655447571,-500.0,0.00013972,2]
[334932407,1723655447581,-500.0,0.00013972,2]
[334932408,1723655447590,-500.0,0.00013972,2]
[334932409,1723655447599,-500.0,0.00013972,2]
[334932410,1723655447609,-676.76,0.00013972,2]
[334932411,1723655447619,-500.0,0.00013972,2]
[334932412,1723655447630,-500.0,0.00013972,2]
[334932413,1723655447640,-500.0,0.00013972,2]
[334932414,1723655447649,-500.0,0.00013972,2]
[334932415,1723655447658,-500.0,0.00013972,2]
[334932416,1723655447668,-500.0,0.00013972,2]
[334932417,1723655447680,-500.0,0.00013972,2]
[334932418,1723655447690,-500.0,0.00013972,2]
[334932419,1723655447699,-500.0,0.00013972,2]
[334932420,1723655447709,-811.91,0.00013972,2]
[334932421,1723655447718,-500.0,0.00013972,2]
[334932422,1723655447727,-500.0,0.00013972,2]
[334932423,1723655447737,-500.0,0.00013972,2]
[334932424,1723655447746,-500.0,0.00013972,2]
[334932425,1723655447755,-500.0,0.00013972,2]
[334932426,1723655447765,-500.0,0.00013972,2]
[334932427,1723655447774,-668.77,0.00013972,2]
[334932428,1723655447893,-500.0,0.00013972,2]
[334932429,1723655447904,-500.0,0.00013972,2]
[334932430,1723655447913,-500.0,0.00013972,2]
[334932431,1723655447923,-500.0,0.00013972,2]
[334932432,1723655447936,-500.0,0.00013972,2]
[334932433,1723655447946,-736.67,0.00013972,2]
[334932434,1723655447956,-151.0,0.00013972,2]
[334932435,1723655447965,-500.0,0.00013972,2]
[334932436,1723655447974,-500.0,0.00013972,2]
[334932437,1723655447984,-677.47,0.00013972,2]
[334932438,1723655447993,-500.0,0.00013972,2]
[334932439,1723655448003,-674.07,0.00013972,2]
[334932440,1723655448012,-151.0,0.00013972,2]
[334932441,1723655448022,-500.0,0.00013972,2]
[334932442,1723655448032,-500.0,0.00013972,2]
[334932443,1723655448042,-152.083255,0.00013972,2]
[334932444,1723655448051,-151.0,0.00013972,2]
[334932445,1723655448060,-500.0,0.00013972,2]
[334932446,1723655448069,-500.0,0.00013972,2]
[334932447,1723655448079,-867.65,0.00013972,2]
[334932448,1723655448088,-151.0,0.00013972,2]
[334932449,1723655448098,-500.0,0.00013972,2]
[334932450,1723655448108,-500.0,0.00013972,2]
[334932451,1723655448117,-500.0,0.00013972,2]
[334932452,1723655448126,-500.0,0.00013972,2]
[334932453,1723655448135,-500.0,0.00013972,2]
[334932454,1723655448145,-500.0,0.00013972,2]
[334932455,1723655448157,-500.0,0.00013972,2]
[334932456,1723655448166,-500.0,0.00013972,2]
[334932457,1723655448177,-532.64,0.00013972,2]
[334932458,1723655448188,-679.65,0.00013972,2]
[334932459,1723655448197,-500.0,0.00013972,2]
[334932460,1723655448208,-617.57457,0.00013972,2]
[334932461,1723655448217,-500.0,0.00013972,2]
[334932462,1723655448227,-617.57457,0.00013972,2]
[334932463,1723655448236,-500.0,0.00013972,2]
[334932464,1723655448246,-500.0,0.00013972,2]
[334932465,1723655448255,-549.6448686,0.00013972,2]
[334932466,1723655448264,-500.0,0.00013972,2]
[334932467,1723655448273,-500.0,0.00013972,2]
[334932468,1723655448284,-524.98,0.00013972,2]
[334932469,1723655448294,-773.82,0.00013972,2]
[334932470,1723655448305,-602.27,0.00013972,2]
[334932471,1723655448314,-500.0,0.00013972,2]
[334932472,1723655448325,-500.0,0.00013972,2]
[334932473,1723655448334,-614.39,0.00013972,2]
[334932474,1723655448343,-500.0,0.00013972,2]
[334932475,1723655448354,-500.0,0.00013972,2]
[334932476,1723655448364,-500.0,0.00013972,2]
[334932477,1723655448374,-500.0,0.00013972,2]
[334932478,1723655448383,-500.0,0.00013972,2]
[334932479,1723655448393,-500.0,0.00013972,2]
[334932480,1723655448403,-500.0,0.00013972,2]
[334932481,1723655448413,-500.0,0.00013972,2]
[334932482,1723655448422,-500.0,0.00013972,2]
[334932483,1723655448434,-151.0,0.00013972,2]
[334932484,1723655448443,-500.41,0.00013972,2]
[334932485,1723655448452,-500.0,0.00013972,2]
[334932486,1723655448463,-500.0,0.00013972,2]
[334932487,1723655448473,-500.0,0.00013972,2]
[334932488,1723655448483,-500.0,0.00013972,2]
[334932489,1723655448493,-573.65,0.00013972,2]
[334932490,1723655448502,-205.1084798,0.00013972,2]
[334932491,1723655448512,-500.0,0.00013972,2]
[334932492,1723655448523,-500.0,0.00013972,2]
[334932493,1723655448532,-500.0,0.00013972,2]
[334932494,1723655448542,-325.97998925,0.00013972,2]
[334932495,1723655448551,-500.0,0.00013972,2]
[334932496,1723655448560,-568.18,0.00013972,2]
[334932497,1723655448570,-509.67365765,0.00013972,2]
[334932498,1723655448580,-600.99,0.00013972,2]
[334932499,1723655448589,-743.52,0.00013972,2]
[334932500,1723655448600,-151.0,0.00013972,2]
[334932501,1723655448609,-500.0,0.00013972,2]
[334932502,1723655448619,-151.0,0.00013972,2]
[334932503,1723655448628,-1017.226362,0.00013972,2]
[334932504,1723655448638,-500.0,0.00013972,2]
[334932505,1723655448648,-500.0,0.00013972,2]
[334932506,1723655448658,-500.0,0.00013972,2]
[334932507,1723655448667,-1017.226362,0.00013972,2]
[334932508,1723655448680,-500.0,0.00013972,2]
[334932509,1723655448690,-500.0,0.00013972,2]
[334932510,1723655448701,-479.37542732,0.00013972,2]
[334932511,1723655448710,-500.0,0.00013972,2]
[334932512,1723655448720,-548.94,0.00013972,2]
[334932513,1723655448730,-373.64051077,0.00013972,2]
[334932514,1723655448739,-500.0,0.00013972,2]
[334932515,1723655448749,-500.0,0.00013972,2]
[334932516,1723655448759,-500.0,0.00013972,2]
[334932517,1723655448769,-500.0,0.00013972,2]
[334932518,1723655448777,-500.0,0.00013972,2]
[334932519,1723655448787,-500.0,0.00013972,2]
[334932520,1723655448798,-500.0,0.00013972,2]
[334932521,1723655448808,-500.0,0.00013972,2]
[334932522,1723655448817,-500.0,0.00013972,2]
[334932523,1723655448828,-500.0,0.00013972,2]
[334932524,1723655448838,-538.12,0.00013972,2]
[334932525,1723655448847,-500.0,0.00013972,2]
[334932526,1723655448857,-500.0,0.00013972,2]
[334932527,1723655448870,-500.0,0.00013972,2]
[334932528,1723655448880,-576.98,0.00013972,2]
[334932529,1723655448890,-500.0,0.00013972,2]
[334932530,1723655448900,-500.0,0.00013972,2]
[334932531,1723655448912,-500.0,0.00013972,2]
[334932532,1723655448921,-654.37,0.00013972,2]
[334932533,1723655448931,-500.0,0.00013972,2]
[334932534,1723655448943,-660.58,0.00013972,2]
[334932535,1723655448954,-500.0,0.00013972,2]
[334932536,1723655448965,-583.01,0.00013972,2]
[334932537,1723655448975,-500.0,0.00013972,2]
[334932538,1723655448985,-500.0,0.00013972,2]
[334932539,1723655448994,-500.0,0.00013972,2]
[334932540,1723655449004,-500.0,0.00013972,2]
[334932541,1723655449013,-500.0,0.00013972,2]
[334932542,1723655449023,-500.0,0.00013972,2]
[334932543,1723655449033,-500.0,0.00013972,2]
[334932544,1723655449043,-642.57,0.00013972,2]
[334932545,1723655449053,-542.25,0.00013972,2]
[334932546,1723655449062,-500.0,0.00013972,2]
[334932547,1723655449072,-500.0,0.00013972,2]
[334932548,1723655449082,-500.0,0.00013972,2]
[334932549,1723655449092,-500.0,0.00013972,2]
[334932550,1723655449101,-500.0,0.00013972,2]
[334932551,1723655449111,-500.0,0.00013972,2]
[334932552,1723655449121,-500.0,0.00013972,2]
[334932553,1723655449130,-1268.53,0.00013972,2]
[334932554,1723655449140,-517.75224784,0.00013972,2]
[334932555,1723655449150,-208.540436,0.00013972,2]
[334932556,1723655449160,-208.540436,0.00013972,2]
[334932557,1723655449169,-500.0,0.00013972,2]
[334932558,1723655449181,-500.0,0.00013972,2]
[334932559,1723655449190,-500.0,0.00013972,2]
[334932560,1723655449200,-208.540436,0.00013972,2]
[334932561,1723655449209,-500.0,0.00013972,2]
[334932562,1723655449219,-208.540436,0.00013972,2]
[334932563,1723655449231,-151.0,0.00013972,2]
[334932564,1723655449241,-151.0,0.00013972,2]
[334932565,1723655449251,-500.0,0.00013972,2]
[334932566,1723655449260,-151.0,0.00013972,2]
[334932567,1723655449270,-500.0,0.00013972,2]
[334932568,1723655449279,-776.07,0.00013972,2]
[334932569,1723655449289,-696.87,0.00013972,2]
[334932570,1723655449298,-500.0,0.00013972,2]
[334932571,1723655449307,-500.0,0.00013972,2]
[334932572,1723655449317,-500.0,0.00013972,2]
[334932573,1723655449327,-500.0,0.00013972,2]
[334932574,1723655449337,-500.0,0.00013972,2]
[334932575,1723655449347,-501.57218982,0.00013972,2]
[334932576,1723655449358,-500.0,0.00013972,2]
[334932577,1723655449367,-500.0,0.00013972,2]
[334932578,1723655449377,-500.0,0.00013972,2]
[334932579,1723655449386,-583.28,0.00013972,2]
[334932580,1723655449395,-532.373221,0.00013972,2]
[334932581,1723655449405,-500.0,0.00013972,2]
[334932582,1723655449415,-532.373221,0.00013972,2]
[334932583,1723655449425,-741.42,0.00013972,2]
[334932584,1723655449438,-151.0,0.00013972,2]
[334932585,1723655449449,-151.0,0.00013972,2]
[334932586,1723655449458,-532.373221,0.00013972,2]
[334932587,1723655449468,-532.373221,0.00013972,2]
[334932588,1723655449478,-500.0,0.00013972,2]
[334932589,1723655449487,-500.0,0.00013972,2]
[334932590,1723655449497,-500.0,0.00013972,2]
[334932591,1723655449506,-500.0,0.00013972,2]
[334932592,1723655449516,-500.0,0.00013972,2]
[334932593,1723655449527,-151.0,0.00013972,2]
[334932594,1723655449537,-151.0,0.00013972,2]
[334932595,1723655449547,-500.0,0.00013972,2]
[334932596,1723655449557,-500.0,0.00013972,2]
[334932597,1723655449567,-623.71,0.00013972,2]
[334932598,1723655449576,-500.0,0.00013972,2]
[334932599,1723655449585,-500.0,0.00013972,2]
[334932600,1723655449595,-500.0,0.00013972,2]
[334932601,1723655449604,-500.0,0.00013972,2]
[334932602,1723655449613,-151.0,0.00013972,2]
[334932603,1723655449623,-500.0,0.00013972,2]
[334932604,1723655449632,-151.0,0.00013972,2]
[334932605,1723655449641,-500.0,0.00013972,2]
[334932606,1723655449650,-500.0,0.00013972,2]
[334932607,1723655449661,-500.0,0.00013972,2]
[334932608,1723655449670,-500.0,0.00013972,2]
[334932609,1723655449680,-778.44,0.00013972,2]
[334932610,1723655449690,-537.82,0.00013972,2]
[334932611,1723655449699,-500.0,0.00013972,2]
[334932612,1723655449709,-500.0,0.00013972,2]
[334932613,1723655449718,-500.0,0.00013972,2]
[334932614,1723655449728,-946.37,0.00013972,2]
[334932615,1723655449737,-767.76,0.00013972,2]
[334932616,1723655449748,-500.0,0.00013972,2]
[334932617,1723655449758,-844.17,0.00013972,2]
[334932618,1723655449769,-500.0,0.00013972,2]
[334932619,1723655449779,-367.204328,0.00013972,2]
[334932620,1723655449789,-500.0,0.00013972,2]
[334932621,1723655449799,-398.298347,0.00013972,2]
[334932622,1723655449808,-398.298347,0.00013972,2]
[334932623,1723655449818,-367.204328,0.00013972,2]
[334932624,1723655449827,-500.0,0.00013972,2]
[334932625,1723655449837,-398.298347,0.00013972,2]
[334932626,1723655449846,-398.298347,0.00013972,2]
[334932627,1723655449856,-332.686473,0.00013972,2]
[334932628,1723655449868,-500.0,0.00013972,2]
[334932629,1723655449878,-500.0,0.00013972,2]
[334932630,1723655449887,-500.0,0.00013972,2]
[334932631,1723655449898,-500.0,0.00013972,2]
[334932632,1723655449908,-500.0,0.00013972,2]
[334932633,1723655449917,-500.0,0.00013972,2]
[334932634,1723655449927,-332.686473,0.00013972,2]
[334932635,1723655449937,-500.0,0.00013972,2]
[334932636,1723655449948,-756.07,0.00013972,2]
[334932637,1723655449958,-852.14,0.00013972,2]
[334932638,1723655449968,-500.0,0.00013972,2]
[334932639,1723655449977,-500.0,0.00013972,2]
[334932640,1723655449987,-500.0,0.00013972,2]
[334932641,1723655449997,-500.0,0.00013972,2]
[334932642,1723655450006,-681.51,0.00013972,2]
[334932643,1723655450016,-500.0,0.00013972,2]
[334932644,1723655450027,-500.0,0.00013972,2]
[334932645,1723655450037,-500.0,0.00013972,2]
[334932646,1723655450046,-500.0,0.00013972,2]
[334932647,1723655450057,-500.0,0.00013972,2]
[334932648,1723655450066,-764.31,0.00013972,2]
[334932649,1723655450077,-515.16,0.00013972,2]
[334932650,1723655450183,-784.61,0.00013972,2]
[334932651,1723655450205,-500.0,0.00013972,2]
[334932652,1723655450215,-800.5,0.00013972,2]
[334932653,1723655450225,-500.0,0.00013972,2]
[334932654,1723655450234,-500.0,0.00013972,2]
[334932655,1723655450243,-500.0,0.00013972,2]
[334932656,1723655450253,-784.83,0.00013972,2]
[334932657,1723655450263,-227.290499,0.00013972,2]
[334932658,1723655450273,-500.0,0.00013972,2]
[334932659,1723655450282,-500.0,0.00013972,2]
[334932660,1723655450292,-791.36,0.00013972,2]
[334932661,1723655450302,-227.290499,0.00013972,2]
[334932662,1723655450311,-500.0,0.00013972,2]
[334932663,1723655450320,-500.0,0.00013972,2]
[334932664,1723655450330,-843.61,0.00013972,2]
[334932665,1723655450339,-500.0,0.00013972,2]
[334932666,1723655450350,-500.0,0.00013972,2]
[334932667,1723655450360,-151.0,0.00013972,2]
[334932668,1723655450370,-500.0,0.00013972,2]
[334932669,1723655450379,-564.14,0.00013972,2]
[334932670,1723655450388,-216.90619,0.00013972,2]
[334932671,1723655450398,-500.0,0.00013972,2]
[334932672,1723655450407,-500.0,0.00013972,2]
[334932673,1723655450417,-500.0,0.00013972,2]
[334932674,1723655450429,-500.0,0.00013972,2]
[334932675,1723655450439,-500.0,0.00013972,2]
[334932676,1723655450448,-500.0,0.00013972,2]
[334932677,1723655450458,-817.53,0.00013972,2]
[334932678,1723655450467,-500.0,0.00013972,2]
[334932679,1723655450477,-500.0,0.00013972,2]
[334932680,1723655450487,-500.0,0.00013972,2]
[334932681,1723655450496,-500.0,0.00013972,2]
[334932682,1723655450506,-500.0,0.00013972,2]
[334932683,1723655450515,-726.83,0.00013972,2]
[334932684,1723655450525,-500.0,0.00013972,2]
[334932685,1723655450534,-500.0,0.00013972,2]
[334932686,1723655450543,-1888.72,0.00013972,2]
[334932687,1723655450553,-646.92,0.00013972,2]
[334932688,1723655450562,-1122.507384,0.00013972,2]
[334932689,1723655450571,-500.0,0.00013972,2]
[334932690,1723655450580,-1122.507384,0.00013972,2]
[334932691,1723655450589,-276.63727268,0.00013972,2]
[334932692,1723655450599,-568.99,0.00013972,2]
[334932693,1723655450608,-500.0,0.00013972,2]
[334932694,1723655450617,-500.0,0.00013972,2]
[334932695,1723655450627,-531.64402534,0.00013972,2]
[334932696,1723655450636,-500.0,0.00013972,2]
[334932697,1723655450645,-500.0,0.00013972,2]
[334932698,1723655450654,-389.924994,0.00013972,2]
[334932699,1723655450663,-531.96,0.00013972,2]
[334932700,1723655450672,-500.0,0.00013972,2]
[334932701,1723655450682,-500.0,0.00013972,2]
[334932702,1723655450690,-500.0,0.00013972,2]
[334932703,1723655450700,-500.0,0.00013972,2]
[334932704,1723655450709,-500.0,0.00013972,2]
[334932705,1723655450719,-389.924994,0.00013972,2]
[334932706,1723655450728,-500.0,0.00013972,2]
[334932707,1723655450738,-1439.09,0.00013972,2]
[334932708,1723655450747,-638.34,0.00013972,2]
[334932709,1723655450757,-595.82,0.00013972,2]
[334932710,1723655450766,-1268.0,0.00013972,2]
[334932711,1723655450775,-500.0,0.00013972,2]
[334932712,1723655450784,-501.69,0.00013972,2]
[334932713,1723655450793,-500.0,0.00013972,2]
[334932714,1723655450802,-500.0,0.00013972,2]
[334932715,1723655450812,-500.0,0.00013972,2]
[334932716,1723655450821,-828.71,0.00013972,2]
[334932717,1723655450830,-500.0,0.00013972,2]
[334932718,1723655450839,-500.0,0.00013972,2]
[334932719,1723655450849,-500.0,0.00013972,2]
[334932720,1723655450860,-1118.42,0.00013972,2]
[334932721,1723655450872,-500.0,0.00013972,2]
[334932722,1723655450881,-500.0,0.00013972,2]
[334932723,1723655450891,-500.0,0.00013972,2]
[334932724,1723655450903,-500.0,0.00013972,2]
[334932725,1723655450912,-500.0,0.00013972,2]
[334932726,1723655450922,-500.0,0.00013972,2]
[334932727,1723655450939,-500.0,0.00013972,2]
[334932728,1723655450949,-500.0,0.00013972,2]
[334932729,1723655450958,-500.0,0.00013972,2]
[334932730,1723655450968,-500.0,0.00013972,2]
[334932731,1723655450977,-526.81,0.00013972,2]
[334932732,1723655450986,-524.73,0.00013972,2]
[334932733,1723655450995,-501.16576308,0.00013972,2]
[334932734,1723655451005,-500.0,0.00013972,2]
[334932735,1723655451014,-500.0,0.00013972,2]
[334932736,1723655451023,-549.27,0.00013972,2]
[334932737,1723655451033,-500.0,0.00013972,2]
[334932738,1723655451042,-500.0,0.00013972,2]
[334932739,1723655451051,-500.0,0.00013972,2]
[334932740,1723655451061,-500.0,0.00013972,2]
[334932741,1723655451070,-540.34,0.00013972,2]
[334932742,1723655451081,-1943.82,0.00013972,2]
[334932743,1723655451090,-500.0,0.00013972,2]
[334932744,1723655451099,-255.05178131,0.00013972,2]
[334932745,1723655451108,-500.0,0.00013972,2]
[334932746,1723655451118,-500.0,0.00013972,2]
[334932747,1723655451127,-546.06,0.00013972,2]
[334932748,1723655451136,-500.0,0.00013972,2]
[334932749,1723655451146,-500.0,0.00013972,2]
[334932750,1723655451156,-500.0,0.00013972,2]
[334932751,1723655451165,-4626.71,0.00013972,2]
[334932752,1723655451174,-500.0,0.00013972,2]
[334932753,1723655451183,-500.0,0.00013972,2]
[334932754,1723655451192,-500.0,0.00013972,2]
[334932755,1723655451201,-500.0,0.00013972,2]
[334932756,1723655451210,-500.0,0.00013972,2]
[334932757,1723655451220,-758.263945,0.00013972,2]
[334932758,1723655451228,-500.0,0.00013972,2]
[334932759,1723655451238,-500.0,0.00013972,2]
[334932760,1723655451247,-692.51,0.00013972,2]
[334932761,1723655451256,-758.263945,0.00013972,2]
[334932762,1723655451266,-500.0,0.00013972,2]
[334932763,1723655451276,-500.0,0.00013972,2]
[334932764,1723655451286,-660.19,0.00013972,2]
[334932765,1723655451295,-500.0,0.00013972,2]
[334932766,1723655451304,-633.02,0.00013972,2]
[334932767,1723655451313,-676.18,0.00013972,2]
[334932768,1723655451322,-413.02977491,0.00013972,2]
[334932769,1723655451331,-500.0,0.00013972,2]
[334932770,1723655451341,-500.0,0.00013972,2]
[334932771,1723655451350,-151.0,0.00013972,2]
[334932772,1723655451359,-500.0,0.00013972,2]
[334932773,1723655451368,-500.0,0.00013972,2]
[334932774,1723655451377,-500.0,0.00013972,2]
[334932775,1723655451386,-698.13,0.00013972,2]
[334932776,1723655451396,-1189.292467,0.00013972,2]
[334932777,1723655451405,-151.0,0.00013972,2]
[334932778,1723655451415,-155.0,0.0001398,2]
[334932779,1723655451424,-150.01,0.00013999,2]
[334932780,1723655451437,-1645.61929281,0.00013999,2]
[334932781,1723655451447,-154.74467129,0.00014,2]
[334932782,1723655451457,-150.112233,0.00014,2]
[334932783,1723655451466,-47719.60506732,0.00014,2]
[334932784,1723655451476,-1000.0,0.00014,14]
[334932785,1723655451485,-150.432,0.00014026,2]
[334932786,1723655451495,-212.86,0.00014026,2]
[334932787,1723655451504,-150.0,0.00014026,2]
[334932788,1723655451514,-150.0,0.00014026,2]
[334932789,1723655451524,-150.0,0.00014026,2]
[334932790,1723655451533,-520.0,0.00014026,2]
[334932791,1723655451542,-150.112233,0.000141,2]
[334932792,1723655451553,-150.112233,0.000141,2]
[334932793,1723655451563,-602.0,0.000141,2]
[334932794,1723655451572,-943.64189185,0.000142,3]
[334932795,1723655451581,-150.112233,0.000142,2]
[334932796,1723655451591,-151.0,0.00014235,2]
[334932797,1723655451600,-378.981055,0.00014235,2]
[334932798,1723655451609,-378.981055,0.00014235,2]
[334932799,1723655451619,-1018.44,0.00014235,2]
[334932800,1723655451629,-1018.44,0.00014235,2]
[334932801,1723655451639,-280.517155,0.00014236,2]
[334932802,1723655451650,-280.517155,0.00014236,2]
[334932803,1723655451661,-151.0,0.00014236,2]
[334932804,1723655451671,-1017.226362,0.00014236,2]
[334932805,1723655451683,-1017.226362,0.00014236,2]
[334932806,1723655451693,-151.0,0.00014236,2]
[334932807,1723655451702,-367.204328,0.00014236,2]
[334932808,1723655451711,-367.204328,0.00014236,2]
[334932809,1723655451721,-152.371739,0.00014245,2]
[334932810,1723655451730,-1018.44,0.00014245,2]
[334932811,1723655451740,-1018.44,0.00014245,2]
[334932812,1723655451751,-1018.44,0.00014245,2]
[334932813,1723655451760,-1018.44,0.00014245,2]
[334932814,1723655451769,-1018.46017253,0.00014245,2]
[334932815,1723655451778,-53392.37711857,0.00014246,2]
[334932816,1723655451788,-280.517155,0.00014246,2]
[334932817,1723655451798,-280.517155,0.00014246,2]
[334932818,1723655451809,-500.0,0.00014246,2]
[334932819,1723655451819,-500.0,0.00014246,2]
[334932820,1723655451829,-500.0,0.00014246,2]
[334932821,1723655451838,-500.0,0.00014246,2]
[334932822,1723655451847,-151.0,0.00014246,2]
[334932823,1723655451857,-151.0,0.00014246,2]
[334932824,1723655451870,-650.57,0.00014246,2]
[334932825,1723655451879,-500.0,0.00014246,2]
[334932826,1723655451888,-500.0,0.00014246,2]
[334932827,1723655451898,-573.64,0.00014246,2]
[334932828,1723655451907,-500.0,0.00014246,2]
[334932829,1723655451917,-500.98,0.00014246,2]
[334932830,1723655451927,-151.0,0.00014246,2]
[334932831,1723655451944,-500.0,0.00014246,2]
[334932832,1723655451954,-500.0,0.00014246,2]
[334932833,1723655451963,-290.945632,0.00014246,2]
[334932834,1723655451973,-290.945632,0.00014246,2]
[334932835,1723655451982,-500.0,0.00014246,2]
[334932836,1723655451991,-151.0,0.00014246,2]
[334932837,1723655452002,-517.44,0.00014246,2]
[334932838,1723655452012,-151.896447,0.00014246,2]
[334932839,1723655452022,-500.0,0.00014246,2]
[334932840,1723655452034,-151.0,0.00014246,2]
[334932841,1723655452043,-151.0,0.00014246,2]
[334932842,1723655452054,-500.0,0.00014246,2]
[334932843,1723655452065,-500.0,0.00014246,2]
[334932844,1723655452075,-500.0,0.00014246,2]
[334932845,1723655452088,-500.0,0.00014246,2]
[334932846,1723655452098,-618.62272426,0.00014246,2]
[334932847,1723655452107,-500.0,0.00014246,2]
[334932848,1723655452118,-380.62879097,0.00014246,2]
[334932849,1723655452127,-500.0,0.00014246,2]
[334932850,1723655452138,-151.0,0.00014246,2]
[334932851,1723655452148,-151.0,0.00014246,2]
[334932852,1723655452157,-500.0,0.00014246,2]
[334932853,1723655452167,-500.0,0.00014246,2]
[334932854,1723655452177,-500.0,0.00014246,2]
[334932855,1723655452293,-500.0,0.00014246,2]
[334932856,1723655452303,-866.581856,0.00014246,2]
[334932857,1723655452314,-866.581856,0.00014246,2]
[334932858,1723655452323,-621.1056624,0.00014246,2]
[334932859,1723655452333,-500.0,0.00014246,2]
[334932860,1723655452343,-500.0,0.00014246,2]
[334932861,1723655452353,-500.0,0.00014246,2]
[334932862,1723655452362,-500.0,0.00014246,2]
[334932863,1723655452372,-500.0,0.00014246,2]
[334932864,1723655452382,-500.0,0.00014246,2]
[334932865,1723655452392,-500.0,0.00014246,2]
[334932866,1723655452401,-500.0,0.00014246,2]
[334932867,1723655452410,-500.0,0.00014246,2]
[334932868,1723655452420,-500.0,0.00014246,2]
[334932869,1723655452435,-607.62928695,0.00014246,2]
[334932870,1723655452444,-500.0,0.00014246,2]
[334932871,1723655452453,-500.0,0.00014246,2]
[334932872,1723655452461,-500.0,0.00014246,2]
[334932873,1723655452471,-500.0,0.00014246,2]
[334932874,1723655452486,-158.35396134,0.00014246,2]
[334932875,1723655452495,-565.84,0.00014246,2]
[334932876,1723655452505,-500.0,0.00014246,2]
[334932877,1723655452515,-500.0,0.00014246,2]
[334932878,1723655452524,-500.0,0.00014246,2]
[334932879,1723655452533,-500.50145573,0.00014246,2]
[334932880,1723655452544,-500.0,0.00014246,2]
[334932881,1723655452553,-500.0,0.00014246,2]
[334932882,1723655452563,-474.59980728,0.00014246,2]
[334932883,1723655452572,-500.0,0.00014246,2]